fUSD/lending_fUSD_20250824
["ID","MTS","AMOUNT","RATE_DAILY","PERIOD"]
[381084447,1756017610283,167.0,0.00024519,120]
[381084448,1756017611539,167.0,0.00025745,120]
[381084449,1756017613204,167.0,0.00027032,120]
[381084450,1756017614249,167.0,0.00028384,120]
[381084459,1756017799127,500.0,0.00025965,120]
[381084460,1756017799540,500.0,0.00028613,120]
[381084463,1756017905840,167.0,0.00024555,120]
[381084464,1756017907060,167.0,0.00025783,120]
[381084465,1756017909497,167.0,0.00027072,120]
[381084466,1756017986848,168.33,0.00028767,120]
[381084470,1756018019308,200.0,0.000287,120]
[381084476,1756018195646,821.5,0.00028767,120]
[381084477,1756018232089,-418.54375762,0.00013698,3]
[381084478,1756018232101,-1581.45624238,0.00013698,3]
[381084479,1756018232111,-151.0,0.00013699,2]
[381084480,1756018232120,-448.22,0.00013699,2]
[381084481,1756018232130,-152.0,0.00014384,2]
[381084482,1756018232140,-205.63281959,0.00015066,2]
[381084483,1756018232149,-361.64487382,0.00015066,2]
[381084484,1756018232159,-169.81345415,0.00015066,2]
[381084485,1756018232169,-2000.0,0.00015067,3]
[381084486,1756018232179,-153.0,0.00015068,2]
[381084487,1756018232188,-235.0,0.00015099,2]
[381084488,1756018232197,-2922.46046624,0.000151,2]
[381084489,1756018232227,-778.72271666,0.000151,2]
[381084490,1756018232279,-7025.24964766,0.000151,2]
[381084491,1756018232396,-8197.47384897,0.000151,2]
[381084492,1756018232408,-2084.68811941,0.000151,2]
[381084562,1756018238948,-1931.99999999,0.000151,2]
[381084564,1756018238960,-837.64,0.000151,2]
[381084568,1756018238986,-2264.10714663,0.000151,2]
[381084570,1756018239005,-3680.38125932,0.000151,2]
[381084573,1756018239016,-554.74850783,0.000151,2]
[381084578,1756018239059,-544.4,0.000151,2]
[381084580,1756018239071,-575.30635287,0.000151,2]
[381084583,1756018239086,-275.89656415,0.000151,2]
[381084709,1756018240265,-1675.05793492,0.000151,2]
[381084950,1756018243088,-16266.94065588,0.000151,2]
[381084951,1756018243098,-6041.97,0.0001565,2]
[381084952,1756018243108,-500.0,0.00015733,2]
[381084953,1756018243118,-154.0,0.00015753,2]
[381084954,1756018243127,-7437.08954412,0.00016116,2]
[381084955,1756018243139,-3109.80001,0.00016116,2]
[381085140,1756018246012,-634.04620955,0.00016116,2]
[381085155,1756018246136,-12586.64046561,0.00016116,2]
[381085157,1756018246147,-420.11592029,0.00016116,2]
[381085162,1756018246187,-1174.9999995,0.00016116,2]
[381085170,1756018246254,-4176.61611355,0.00016116,2]
[381085173,1756018246270,-17699.03173738,0.00016116,2]
[381085175,1756018246280,-21540.69356309,0.00016256,2]
[381085177,1756018246289,-158.20015603,0.00016434,2]
[381085179,1756018246300,-155.0,0.00016438,2]
[381085181,1756018246310,-96314.09064202,0.000165,2]
[381085183,1756018246319,-925.0,0.00016534,2]
[381085185,1756018246329,-844.35788172,0.00016637,2]
[381085187,1756018246338,-200.0,0.00016912,2]
[381085189,1756018246347,-151.0,0.00016912,2]
[381085191,1756018246357,-325.15449704,0.00016912,2]
[381085193,1756018246366,-666.0,0.00016971,3]
[381085195,1756018246375,-156.0,0.00017123,2]
[381085197,1756018246385,-151.0,0.00017711,2]
[381085199,1756018246394,-151.0,0.00017712,2]
[381085201,1756018246404,-151.0,0.00017715,2]
[381085203,1756018246413,-151.0,0.00017745,2]
[381085205,1756018246422,-295.38937639,0.00017808,2]
[381085207,1756018246432,-233.87062985,0.0001936,2]
[381085209,1756018246442,-1085.0,0.00019421,2]
[381085211,1756018246451,-200.0,0.00019651,2]
[381085213,1756018246461,-233.06436179,0.00019651,2]
[381085215,1756018246474,-158.20015603,0.00019926,2]
[381085217,1756018246484,-5800.0,0.00019992,2]
[381085219,1756018246493,-2000.0,0.0002,2]
[381085221,1756018246502,-5800.0,0.0002,2]
[381085223,1756018246513,-448.22,0.00020187,2]
[381085225,1756018246523,-438.83428004,0.00020267,2]
[381085227,1756018246532,-2000.0,0.00020318,2]
[381085229,1756018246541,-1085.0,0.00020444,2]
[381085231,1756018246552,-500.0,0.0002084,2]
[381085233,1756018246562,-176.96,0.0002084,2]
[381085235,1756018246571,-434.5282381,0.00020845,2]
[381085237,1756018246581,-200.0,0.00020878,2]
[381085239,1756018246590,-1000.0,0.0002096,2]
[381085241,1756018246600,-428.8,0.00021032,2]
[381085243,1756018246609,-277.35679052,0.0002106,2]
[381085245,1756018246619,-250.64,0.000212,2]
[381085247,1756018246628,-5217.21845406,0.00021273,2]
[381085249,1756018246637,-4184.29444336,0.00021356,2]
[381085251,1756018246647,-6230.22,0.0002137,2]
[381085253,1756018246657,-21045.34,0.00021456,2]
[381085255,1756018246667,-5800.0,0.00021495,2]
[381085257,1756018246675,-5800.0,0.00021503,2]
[381085259,1756018246685,-1085.0,0.0002152,2]
[381085261,1756018246695,-600.0,0.00021616,2]
[381085263,1756018246704,-165.7697622,0.00021845,2]
[381085265,1756018246714,-5000.0,0.00021918,2]
[381085267,1756018246723,-1581.0,0.00021945,30]
[381085269,1756018246732,-4184.29444331,0.00021973,2]
[381085271,1756018246741,-166.0,0.00022,2]
[381085273,1756018246751,-1105.57,0.000221,2]
[381085275,1756018246761,-600.0,0.00022164,2]
[381085276,1756018246772,-282.981,0.00022192,2]
[381085278,1756018246782,-287.61899177,0.00022429,2]
[381085280,1756018246791,-4184.29444331,0.0002259,2]
[381085281,1756018246801,-1085.0,0.00022595,2]
[381085282,1756018246810,-600.0,0.00022712,2]
[381085283,1756018246819,-2298.8914,0.000229,2]
[381085284,1756018246828,-6576.74782894,0.00023,2]
[381085285,1756018246838,-166.0,0.00023014,7]
[381085286,1756018246847,-500.0,0.00023014,7]
[381085287,1756018246856,-1000.0,0.00023057,2]
[381085288,1756018246865,-2000.0,0.00023119,2]
[381085289,1756018246875,-500.0,0.00023129,2]
[381085291,1756018246884,-502.86388625,0.00023129,2]
[381085293,1756018246895,-500.0,0.00023129,2]
[381085295,1756018246905,-4184.29444331,0.00023207,2]
[381085297,1756018246914,-600.0,0.0002326,2]
[381085299,1756018246923,-500.0,0.00023288,7]
[381085301,1756018246932,-1105.57,0.00023303,2]
[381085303,1756018246941,-158.20015603,0.00023418,2]
[381085305,1756018246951,-500.0,0.00023562,7]
[381085307,1756018246959,-767.8049193,0.00023725,2]
[381085309,1756018246970,-298.26089446,0.00023798,2]
[381085311,1756018246980,-2000.0,0.000238,2]
[381085313,1756018246989,-150.0,0.000238,2]
[381085315,1756018246999,-288.1871272,0.000238,2]
[381085317,1756018247008,-600.0,0.00023808,2]
[381085319,1756018247018,-4184.29444331,0.00023824,2]
[381085321,1756018247028,-500.0,0.00023873,2]
[381085323,1756018247038,-500.0,0.00023873,2]
[381085325,1756018247047,-166.02,0.0002389,2]
[381085327,1756018247056,-140307.8004,0.000239,2]
[381085329,1756018247066,-302.79330886,0.000239,2]
[381085331,1756018247075,-5000.0,0.000239,2]
[381085333,1756018247084,-2858.1259277,0.00023941,2]
[381085335,1756018247093,-153.24,0.0002399,2]
[381085337,1756018247102,-248.63680189,0.0002399,2]
[381085339,1756018247111,-300.0,0.00023999,2]
[381085340,1756018247120,-600.0,0.00023999,2]
[381085343,1756018247129,-600.0,0.00023999,2]
[381085345,1756018247139,-600.0,0.00023999,2]
[381085346,1756018247149,-600.0,0.00023999,2]
[381085349,1756018247158,-153.80252271,0.00023999,2]
[381085350,1756018247167,-1322.01,0.00023999,2]
[381085353,1756018247178,-1076.0,0.00024,2]
[381085355,1756018247187,-2633.57749812,0.00024,7]
[381085357,1756018247197,-12726.06636579,0.00024,7]
[381085362,1756018247351,-729.6200088,0.00024,7]
[381085382,1756018355129,154.0,0.00028767,120]
[381085383,1756018518767,-500.0,0.00013693,2]
[381085384,1756018518790,-250.84674971,0.00013693,2]
[381085385,1756018518814,-482.73761251,0.00013693,2]
[381085386,1756018518838,-264.92536003,0.00013693,2]
[381085387,1756018518860,-2000.0,0.00014381,3]
[381085388,1756018518883,-237.25933939,0.00015063,2]
[381085389,1756018518906,-585.37268753,0.00015063,2]
[381085390,1756018518930,-2000.0,0.00015064,3]
[381085391,1756018518954,-844.35788172,0.00015843,2]
[381085401,1756018913194,323.268,0.00014465,2]
[381085402,1756018924553,403.39,0.00013699,2]
[381085403,1756018999027,500.0,0.00025509,120]
[381085404,1756018999155,500.0,0.00027397,120]
[381085432,1756019285798,250.0,0.00015,2]
[381085439,1756019432347,-844.35788172,0.00016521,2]
[381085440,1756019432357,-322.40668207,0.00016527,3]
[381085441,1756019432369,-1677.59331793,0.00016527,3]
[381085442,1756019432379,-301.03,0.00016532,2]
[381085443,1756019432389,-305.79,0.00016532,2]
[381085444,1756019432399,-301.61,0.00016532,2]
[381085445,1756019432408,-301.42,0.00016533,2]
[381085446,1756019432419,-429.55,0.00016533,2]
[381085447,1756019432429,-425.55,0.00016533,2]
[381085448,1756019432438,-430.95,0.00016533,2]
[381085449,1756019432448,-93.61919257,0.00016533,2]
[381085450,1756019432510,-210.99080743,0.00016533,2]
[381085451,1756019432520,-420.88,0.00016533,2]
[381085452,1756019432530,-429.26,0.00016533,2]
[381085453,1756019432539,-305.36,0.00016533,2]
[381085454,1756019432549,-61.38150016,0.00016533,2]
[381085455,1756019432597,-357.82849984,0.00016533,2]
[381085456,1756019432606,-157.894117,0.00016533,2]
[381085457,1756019432643,-260.425883,0.00016533,2]
[381085458,1756019432652,-304.73,0.00016533,2]
[381085459,1756019432662,-150.0,0.00016533,2]
[381085460,1756019432671,-301.89,0.00016534,2]
[381085461,1756019432681,-304.54,0.00016534,2]
[381085462,1756019432690,-237.48250529,0.00016534,2]
[381085463,1756019432701,-67.49749471,0.00016534,2]
[381085464,1756019432711,-302.12,0.00016534,2]
[381085465,1756019432720,-1173.0,0.00016834,2]
[381085466,1756019432730,-415.38250529,0.00017808,2]
[381085489,1756019432893,-84.61749471,0.00017808,2]
[381085490,1756019432903,-1913.13136434,0.00018176,3]
[381085492,1756019438288,-86.86863566,0.00018176,3]
[381085493,1756019438297,-166.08153758,0.00020186,2]
[381085494,1756019438307,-403.39,0.00020187,2]
[381085495,1756019438317,-150.99,0.00020187,2]
[381085496,1756019438327,-150.99,0.00020187,2]
[381085497,1756019438337,-14715.84886428,0.00020187,2]
[381085498,1756019438392,-361.9184155,0.00020187,2]
[381085513,1756019440711,-409.89291562,0.00020187,2]
[381085514,1756019440723,-380.86587188,0.00020187,2]
[381085515,1756019440750,-750.0,0.00020187,2]
[381085516,1756019440761,-737.98888059,0.00020187,2]
[381085517,1756019440773,-3801.59505213,0.00020187,2]
[381085518,1756019440783,-5725.0,0.00020187,2]
[381085519,1756019440793,-9999.99,0.00020187,2]
[381085520,1756019440803,-9999.99,0.00020187,2]
[381085521,1756019440812,-322.6107,0.00020431,2]
[381085522,1756019440821,-277.35679052,0.00020431,2]
[381085523,1756019440831,-500.0,0.00020548,2]
[381085524,1756019440842,-225.58,0.000212,2]
[381085525,1756019440851,-449.97291998,0.00021501,2]
[381085526,1756019440862,-200.0,0.00021579,2]
[381085527,1756019440872,-600.0,0.00021616,2]
[381085528,1756019440882,-1000.0,0.00021648,2]
[381085529,1756019440891,-287.61899177,0.000218,2]
[381085530,1756019440901,-1000.0,0.000219,2]
[381085531,1756019440911,-167.0,0.00022,2]
[381085532,1756019440920,-859.89,0.000221,2]
[381085533,1756019440930,-600.0,0.00022164,2]
[381085534,1756019440939,-1449.25,0.00022663,30]
[381085535,1756019440948,-600.0,0.00022712,2]
[381085536,1756019440958,-2000.0,0.00022841,2]
[381085537,1756019440967,-5000.0,0.0002285,2]
[381085538,1756019440976,-226.385,0.00023038,2]
[381085539,1756019440986,-298.26089446,0.00023169,2]
[381085540,1756019440995,-600.0,0.0002326,2]
[381085541,1756019441004,-5511.0,0.000233,5]
[381085542,1756019441015,-859.89,0.00023304,2]
[381085543,1756019441028,-238.0,0.00023379,2]
[381085544,1756019441037,-238.0,0.00023449,2]
[381085545,1756019441047,-2092.1472217,0.00023467,2]
[381085546,1756019441056,-158.20015603,0.00023467,2]
[381085547,1756019441066,-152.29323134,0.00023501,2]
[381085548,1756019441076,-238.0,0.00023512,2]
[381085549,1756019441085,-89318.5200785,0.00023515,2]
[381085550,1756019441096,-238.0,0.00023567,2]
[381085551,1756019441105,-238.0,0.00023628,2]
[381085552,1756019441115,-238.0,0.00023635,2]
[381085553,1756019441124,-161.47878,0.0002376,2]
[381085554,1756019441134,-652.1218304,0.0002377,2]
[381085555,1756019441143,-80253.6980162,0.0002377,2]
[381085556,1756019441153,-238.0,0.00023796,2]
[381085557,1756019441163,-200.0,0.000238,2]
[381085558,1756019441172,-19722.0,0.000238,2]
[381085559,1756019441182,-150.0,0.000238,2]
[381085560,1756019441191,-600.0,0.00023808,2]
[381085561,1756019441201,-2092.14722165,0.0002385,2]
[381085562,1756019441211,-158.08403607,0.00023899,2]
[381085563,1756019441220,-5000.0,0.00023899,2]
[381085564,1756019441230,-259.53712188,0.000239,2]
[381085565,1756019441239,-238.0,0.00023901,2]
[381085566,1756019441248,-238.0,0.00023911,2]
[381085567,1756019441258,-238.0,0.00023946,2]
[381085568,1756019441268,-500.0,0.00023973,2]
[381085569,1756019441277,-160.75105234,0.00023973,2]
[381085570,1756019441287,-238.0,0.00023986,2]
[381085571,1756019441296,-153.24,0.0002399,2]
[381085572,1756019441306,-244.66530037,0.0002399,2]
[381085573,1756019441316,-557.81952256,0.00023999,2]
[381085574,1756019441325,-1000.0,0.00023999,2]
[381085575,1756019441335,-865.0,0.00023999,2]
[381085576,1756019441344,-5519.70168974,0.00023999,7]
[381085577,1756019441358,-1901.59657217,0.00023999,7]
[381085578,1756019441504,-30823.80000019,0.00023999,7]
[381085579,1756019441515,-14515.16351684,0.00023999,7]
[381085580,1756019441638,-431.97,0.00023999,7]
[381085581,1756019441650,-23028.16535976,0.00023999,7]
[381085582,1756019441661,-274762.07054688,0.00023999,7]
[381085583,1756019441672,-143755.08732565,0.00023999,7]
[381085586,1756019443388,-1308.65146638,0.00023999,7]
[381085587,1756019443400,-346.77870752,0.00023999,7]
[381085588,1756019443413,-232906.86265691,0.00023999,7]
[381085589,1756019443423,-458.63746581,0.00024,7]
[381085590,1756019443432,-212.11701231,0.00024,7]
[381085591,1756019443441,-5177.59061589,0.00024,7]
[381085592,1756019443454,-2094.3429519,0.00024,7]
[381085593,1756019443464,-6927.65524133,0.00024,2]
[381085594,1756019443561,-7642.25806199,0.00024,2]
[381085595,1756019443572,-2379.42943927,0.00024,2]
[381085596,1756019443583,-251.89738216,0.00024,2]
[381085597,1756019443594,-662.53370028,0.00024,2]
[381085598,1756019443626,-8758.49501673,0.00024,2]
[381085599,1756019443636,-2827.58825112,0.00024,2]
[381085600,1756019443648,-54893.31157356,0.00024,2]
[381085632,1756019446351,-603.58248005,0.00024,2]
[381085633,1756019446398,-1434.999985,0.00024,2]
[381085634,1756019446441,-5570.45453968,0.00024,2]
[381085635,1756019446678,-2008.97207901,0.00024,2]
[381085660,1756019523295,2000.0,0.0002332,120]
[381085661,1756019523368,2000.0,0.00021308,120]
[381085667,1756019856971,363.05,0.00013699,2]
[381085672,1756020199261,500.0,0.00025207,120]
[381085673,1756020199632,500.0,0.00027307,120]
[381085676,1756020241711,3541.46,0.00028767,120]
[381085690,1756020526659,681.34526849,0.00028,120]
[381085691,1756020526878,1000.0,0.00012,2]
[381085694,1756020628774,161.265994,0.00013698,2]
[381085695,1756020629100,161.265994,0.00013972,2]
[381085709,1756020631639,-1600.0,0.00017734,2]
[381085710,1756020631679,-370.63653507,0.00017734,2]
[381085711,1756020631734,-1272.01699612,0.00017734,2]
[381085712,1756020631750,-910.34646881,0.00017734,2]
[381085713,1756020631764,-3211.90683119,0.00017734,2]
[381085714,1756020631780,-483.07287045,0.00017734,2]
[381085715,1756020631797,-1537.47542561,0.00017734,2]
[381085716,1756020631813,-860.54487275,0.00017734,2]
[381085717,1756020631827,-1173.0,0.00017734,2]
[381085718,1756020631841,-501.83101362,0.00017734,2]
[381085738,1756020632032,-289.69998638,0.00017734,2]
[381085740,1756020632046,-500.0,0.00017808,2]
[381085743,1756020632060,-151.0,0.00018,2]
[381085745,1756020632074,-59.0174711,0.00018721,2]
[381085749,1756020632092,-440.9825289,0.00018721,2]
[381085752,1756020632107,-559.0174711,0.00019507,2]
[381085755,1756020632124,-1940.9825289,0.00019507,2]
[381085756,1756020632138,-1000.0,0.00019507,3]
[381085757,1756020632156,-486.57931087,0.000196,2]
[381085758,1756020632180,-500.0,0.00019635,2]
[381085759,1756020632196,-409.76088128,0.00019984,2]
[381085760,1756020632209,-409.82158347,0.00019985,2]
[381085761,1756020632226,-5135.34627651,0.00019985,2]
[381085762,1756020632241,-7702.90039615,0.00019985,2]
[381085763,1756020632258,-322.88990456,0.00019985,2]
[381085764,1756020632275,-9074.1804675,0.00019985,2]
[381085778,1756020637815,-8458.57609884,0.00019985,2]
[381085782,1756020637840,-260.0,0.00019985,2]
[381085796,1756020637967,-1519.1193888,0.00019985,2]
[381085855,1756020638519,188.014527,0.00012,2]
[381085898,1756020639631,-188.014527,0.0001625,2]
[381085899,1756020639642,-44129.68578134,0.00019985,2]
[381085900,1756020639651,-277.35679052,0.00019988,2]
[381085901,1756020639661,-346.55,0.00019999,2]
[381085902,1756020639670,-45926.8444581,0.0002,2]
[381085903,1756020639680,-151.0,0.0002,2]
[381085904,1756020639690,-182.78,0.0002,2]
[381085905,1756020639699,-93261.09833668,0.0002,2]
[381085906,1756020639709,-2518.28688648,0.0002,2]
[381085907,1756020639718,-6005.7063166,0.0002,2]
[381085908,1756020639728,-25095.66100854,0.0002,2]
[381085909,1756020639737,-5735.76342371,0.0002,2]
[381085910,1756020639747,-3950.0,0.0002,2]
[381085911,1756020639756,-4061.08479767,0.0002,2]
[381085912,1756020639766,-7232.15986651,0.0002,2]
[381085913,1756020639776,-150.0,0.0002,2]
[381085914,1756020639785,-721.72465701,0.0002,2]
[381085915,1756020639795,-2807.35885219,0.0002,2]
[381085916,1756020639804,-10381.92123111,0.0002,2]
[381085919,1756020639976,-79881.21648817,0.0002,2]
[381085920,1756020639986,-37477.98925255,0.0002,2]
[381085928,1756020642584,-1003.41372954,0.0002,2]
[381085929,1756020642682,-538.69,0.0002,2]
[381085939,1756020645804,-12983.86950048,0.0002,2]
[381085940,1756020645816,-615.3,0.0002,2]
[381085941,1756020645949,-1308.22450775,0.0002,2]
[381085942,1756020664004,168.499346,0.00012,2]
[381085946,1756020786548,344.89,0.00013699,2]
[381085947,1756020799419,465.774688,0.00027575,120]
[381085948,1756020804052,528.0,0.00015,2]
[381085953,1756020947755,154.0,0.00016,2]
[381085957,1756021148072,-270.478969,0.00018922,2]
[381085958,1756021148098,-175.67387819,0.00019114,2]
[381085959,1756021148123,-2000.0,0.000192,2]
[381085960,1756021148148,-500.0,0.0001931,2]
[381085961,1756021148176,-500.0,0.0001931,2]
[381085962,1756021148203,-500.0,0.0001931,2]
[381085963,1756021148230,-500.0,0.0001931,2]
[381085964,1756021148258,-500.0,0.0001931,2]
[381085965,1756021148284,-53.84715281,0.0001931,2]
[381085966,1756021163878,-216.35284719,0.0001931,2]
[381085967,1756021163905,-1200.0,0.00019311,2]
[381085968,1756021163928,-2000.0,0.000196,2]
[381085969,1756021163952,-2000.0,0.000198,2]
[381085970,1756021163977,-175.67387819,0.000199,2]
[381085971,1756021164001,-277.35679052,0.00019988,2]
[381085972,1756021164024,-999.99,0.00019988,2]
[381085973,1756021164050,-3603.41,0.00019999,2]
[381085974,1756021164074,-150.0,0.00019999,2]
[381085975,1756021164099,-161.98209549,0.00019999,2]
[381085976,1756021164124,-449.62104206,0.00019999,2]
[381085977,1756021164147,-38765.61334655,0.0002,2]
[381085978,1756021184533,-30666.8146006,0.00019981,2]
[381085979,1756021184559,-7687.64989864,0.0002,2]
[381085981,1756021233503,11645.53550076,0.00019983,2]
[381085982,1756021233529,5109.43955244,0.00019983,2]
[381085983,1756021263046,1000.0,0.00019607,2]
[381085984,1756021263369,1000.0,0.00019607,2]
[381085985,1756021263643,1000.0,0.00019607,2]
[381085986,1756021264806,228.261,0.00019607,2]
[381085987,1756021378915,162.882702,0.00016012,2]
[381085988,1756021379789,162.882702,0.00012,2]
[381085989,1756021412070,175.480226,0.00016012,2]
[381085990,1756021412458,175.480226,0.00012,2]
[381085992,1756021450167,2396.3645095,0.00028767,120]
[381085995,1756021528962,151.0,0.00028767,120]
[381085996,1756021544766,216.0,0.0001035,2]
[381085997,1756021592328,17206.6308399,0.00019983,2]
[381085998,1756021626003,679.426,0.00019607,2]
[381086000,1756021636530,151.0,0.000287,120]
[381086001,1756021701676,19150.1555709,0.00019983,2]
[381086002,1756021774641,159.0,0.000193,2]
[381086003,1756021794825,327.64,0.00013699,2]
[381086004,1756021831820,-305.79800032,0.00020009,2]
[381086005,1756021831844,-2.00199968,0.00020009,2]
[381086006,1756021831853,-403.09640032,0.0002001,2]
[381086007,1756021832029,-1500.0,0.0002001,2]
[381086008,1756021832040,-1817.1182122,0.0002001,2]
[381086009,1756021832053,-476.34427757,0.0002001,2]
[381086010,1756021832479,-4917.84597663,0.0002001,2]
[381086012,1756021832488,-5027.22166104,0.0002001,2]
[381086014,1756021832498,-5772.0,0.0002001,2]
[381086016,1756021832507,-162.882702,0.00020025,2]
[381086018,1756021832516,-175.480226,0.00020025,2]
[381086020,1756021832525,-176.86702,0.0002015,2]
[381086022,1756021832535,-327.64,0.00020187,2]
[381086024,1756021832544,-844.35788172,0.00020276,2]
[381086026,1756021832553,-176.86703,0.000204,2]
[381086028,1756021832563,-156.0,0.0002048,2]
[381086029,1756021832572,-2000.0,0.000205,2]
[381086030,1756021832581,-500.0,0.00020548,2]
[381086031,1756021832591,-176.86703,0.0002065,2]
[381086032,1756021832600,-277.35679052,0.00020688,2]
[381086033,1756021832612,-22200.62419446,0.000207,2]
[381086034,1756021832622,-176.86703,0.000209,2]
[381086035,1756021832633,-314.73472945,0.00020999,2]
[381086036,1756021832643,-20000.0,0.00021,2]
[381086037,1756021832653,-1000.0,0.00021078,2]
[381086038,1756021832662,-176.86703,0.0002115,2]
[381086039,1756021832671,-203.02,0.000212,2]
[381086040,1756021832681,-4272.9772794,0.0002125,2]
[381086041,1756021832690,-3839.3182949,0.00021284,2]
[381086042,1756021832699,-3738.5402669,0.00021326,2]
[381086043,1756021832709,-6842.691253,0.00021338,2]
[381086044,1756021832719,-821.78737092,0.0002137,2]
[381086045,1756021832728,-200.0,0.00021388,2]
[381086046,1756021832737,-176.86703,0.000214,2]
[381086047,1756021832746,-953.4301046,0.00021532,2]
[381086048,1756021832755,-666.0,0.00021534,3]
[381086049,1756021832765,-856.667706,0.00021574,2]
[381086050,1756021832774,-600.0,0.00021616,2]
[381086051,1756021832784,-222.52270837,0.00021616,2]
[381086052,1756021832793,-834.1810884,0.00021625,2]
[381086053,1756021832803,-1526.8107951,0.00021641,2]
[381086054,1756021832812,-153.0,0.0002167,2]
[381086055,1756021832821,-5000.0,0.00021918,2]
[381086056,1756021832832,-1328.47,0.00021945,30]
[381086057,1756021832842,-15644.81373641,0.0002199,2]
[381086058,1756021832851,-287.61899177,0.00022057,2]
[381086059,1756021832860,-668.8,0.000221,2]
[381086060,1756021832869,-600.0,0.00022164,2]
[381086061,1756021832879,-176.96,0.00022323,2]
[381086062,1756021832889,-15563.99450211,0.000225,2]
[381086063,1756021832901,-666.0,0.000225,2]
[381086065,1756021837907,-1426.14973168,0.000225,2]
[381086066,1756021837919,-17095.88845387,0.000225,2]
[381086067,1756021837928,-600.0,0.00022712,2]
[381086068,1756021837937,-299.0,0.0002285,2]
[381086069,1756021837946,-1000.0,0.00023,2]
[381086070,1756021837955,-50000.0,0.00023,2]
[381086071,1756021837965,-3676.55449636,0.00023206,2]
[381086072,1756021837974,-181.108,0.0002326,3]
[381086073,1756021837983,-600.0,0.0002326,2]
[381086074,1756021837992,-668.8,0.00023306,2]
[381086075,1756021838001,-9923.0,0.000234,2]
[381086076,1756021838011,-298.26089446,0.00023426,2]
[381086077,1756021838020,-3676.55449627,0.00023618,2]
[381086078,1756021838029,-200.0,0.000237,8]
[381086079,1756021838039,-14223.46942787,0.000237,2]
[381086080,1756021838048,-1000.0,0.00023713,2]
[381086081,1756021838057,-4741.14,0.0002373,2]
[381086082,1756021838067,-500.0,0.000238,8]
[381086083,1756021838076,-200.0,0.00023808,2]
[381086084,1756021838085,-600.0,0.00023808,2]
[381086085,1756021838094,-5798.66406092,0.00023873,2]
[381086086,1756021838235,-11533.9224,0.00023873,2]
[381086236,1756021839741,-708.83189996,0.00023873,2]
[381086239,1756021839754,-1547.79794774,0.00023873,2]
[381086242,1756021839765,-7779.60134818,0.00023873,2]
[381086259,1756021839865,-3770.89309325,0.00023873,2]
[381086261,1756021839876,-45938.1874057,0.00023873,2]
[381086270,1756021839962,-26554.13744425,0.00023873,2]
[381086272,1756021839972,-150.0,0.00023873,7]
[381086274,1756021839982,-158.08403604,0.00023874,2]
[381086276,1756021839991,-5000.0,0.000239,2]
[381086278,1756021840001,-700.0,0.000239,8]
[381086280,1756021840010,-322.48746162,0.000239,2]
[381086282,1756021840020,-5511.0,0.000239,3]
[381086284,1756021840030,-42544.0,0.00023973,2]
[381086286,1756021840040,-151.0,0.00023974,7]
[381086288,1756021840050,-151.0,0.00023974,7]
[381086290,1756021840059,-151.0,0.00023974,7]
[381086292,1756021840069,-151.0,0.00023974,7]
[381086294,1756021840080,-151.0,0.00023974,7]
[381086296,1756021840090,-151.0,0.00023974,7]
[381086298,1756021840099,-151.0,0.00023974,7]
[381086300,1756021840109,-151.0,0.00023974,7]
[381086302,1756021840118,-163.11020025,0.0002399,2]
[381086304,1756021840128,-153.24,0.0002399,2]
[381086306,1756021840138,-300.0,0.00023999,2]
[381086308,1756021840148,-150.0,0.00023999,2]